{"text_format":"3","workbook":"xlsx","n_sheets":2,"sheets":["ZAČÁTEK","OSOBNÍ MĚSÍČNÍ ROZPOČET"],"read":"whole","date_system":"1900"}

{"sheet":"ZAČÁTEK","index":0,"n_rows":7,"n_cols":2,"rows_kept":7}
[null,"INFORMACE O TÉTO ŠABLONĚ"]
[null,"Na tomto listu s osobní měsíční rozpočet můžetet sledovat svoje předpokládané a skutečné měsíční příjmy a předpokládané a skutečné náklady."]
[null,"Výdaje zadávejte do příslušných tabulek pro různé kategorie."]
[null,"Předpokládaný zůstatek, skutečný zůstatek a rozdíl se vypočítají automaticky."]
[null,"Poznámka: "]
[null,"Další pokyny jsou k dispozici na listu OSOBNÍ MĚSÍČNÍ ROZPOČET ve sloupci A. Tento text je záměrně skrytý. Pokud tento text chcete odebrat, vyberte sloupec A a stiskněte klávesu ODSTRANIT. Pokud tento text chcete zobrazit, vyberte sloupec A a změňte barvu písma."]
[null,"Další informace o tabulkách na listu můžete získat tak, že v tabulce stisknete klávesu SHIFT a potom F10, vyberete možnost TABULKA a pak vyberete ALTERNATIVNÍ TEXT."]

{"sheet":"OSOBNÍ MĚSÍČNÍ ROZPOČET","index":1,"n_rows":64,"n_cols":10,"rows_kept":64,"merged":[[3,1,5,1],[3,2,3,3],[3,6,4,8],[3,9,4,9],[4,2,4,3],[5,2,5,3],[5,6,6,8],[5,9,6,9],[7,1,9,1],[7,2,7,3],[7,6,8,8],[7,9,8,9],[8,2,8,3],[9,2,9,3],[22,6,22,9],[23,1,23,4],[31,6,31,9],[33,1,33,4],[38,6,38,9],[40,1,40,4],[44,6,44,9],[46,1,46,4],[50,6,50,9],[54,1,54,4],[57,6,57,9],[58,6,59,8],[58,9,59,9],[60,6,61,8],[60,9,61,9],[62,6,63,8],[62,9,63,9],[64,1,64,4]]}
["Na tomto listu si můžete vytvořit osobní měsíční rozpočet. V buňkách v tomto sloupci jsou užitečné pokyny k tomu, jak tento list používat. Začněte stisknutím šipky dolů."]
["V buňce napravo je název tohoto listu. Další pokyn je v buňce A4.","OSOBNÍ MĚSÍČNÍ ROZPOČET"]
[]
["V buňce napravo je popisek Předpokládané měsíční příjmy. Do buňky E4 zadejte Příjem 1 a do buňky E5 dodatečné Jiné příjmy. Celkové měsíční příjmy se vypočítají v buňce E6. Další pokyn je v buňce A6.","PŘEDPOKLÁDANÉ MĚSÍČNÍ PŘÍJMY","Příjem 1",null,{"v":4300,"d":"4,300.00 Kč"},null,"PŘEDPOKLÁDANÝ ZŮSTATEK \n(předpokládané příjmy minus výdaje)",null,null,{"$f":"E6-J59","v":{"v":3405,"d":"3,405.00 Kč"}}]
[null,null,"Jiné příjmy",null,{"v":300,"d":"300.00 Kč"}]
["V buňce J4 se automaticky počítá předpokládaný zůstatek, v buňce J6 skutečný zůstatek a v buňce J8 rozdíl. Další pokyn je v buňce A8.",null,"Celkové měsíční příjmy",null,{"$f":"SUM(E4:E5)","v":{"v":4600,"d":"4,600.00 Kč"}},null,"SKUTEČNÝ ZŮSTATEK \n(skutečné příjmy minus výdaje)",null,null,{"$f":"E10-J61","v":{"v":3064,"d":"3,064.00 Kč"}}]
[]
["V buňce napravo je popisek Skutečné měsíční příjmy. Do buňky E8 zadejte Příjem 1 a do buňky E9 dodatečné Jiné příjmy. Celkové měsíční příjmy se vypočítají v buňce E10. Další pokyn je v buňce A12.","SKUTEČNÉ MĚSÍČNÍ PŘÍJMY","Příjem 1",null,{"v":4000,"d":"4,000.00 Kč"},null,"ROZDÍL \n(skutečnost minus předpoklad)",null,null,{"$f":"J6-J4","v":{"v":-341,"d":"-341.00 Kč"}}]
[null,null,"Jiné příjmy",null,{"v":300,"d":"300.00 Kč"}]
[null,null,"Celkové měsíční příjmy",null,{"$f":"SUM(E8:E9)","v":{"v":4300,"d":"4,300.00 Kč"}}]
[]
["Zadejte podrobnosti do tabulky pro bydlení, která začíná v buňce napravo, a do tabulky pro zábava, která začíná v buňce G12. Další pokyn je v buňce A25.","BYDLENÍ","Předpokládané náklady","Skutečné náklady","Rozdíl",null,"ZÁBAVA","Předpokládané náklady","Skutečné náklady","Rozdíl"]
[null,"Hypotéka nebo nájemné",{"v":1000,"d":"1,000.00 Kč"},{"v":1000,"d":"1,000.00 Kč"},{"$f":"Bydlení[[#This Row],[Předpokládané náklady]]-Bydlení[[#This Row],[Skutečné náklady]]","v":{"v":0,"d":"0.00 Kč"}},null,"Video/DVD",null,null,{"$f":"Zábava[[#This Row],[Předpokládané náklady]]-Zábava[[#This Row],[Skutečné náklady]]","v":{"v":0,"d":"0.00 Kč"}}]
[null,"Telefon",{"v":54,"d":"54.00 Kč"},{"v":100,"d":"100.00 Kč"},{"$f":"Bydlení[[#This Row],[Předpokládané náklady]]-Bydlení[[#This Row],[Skutečné náklady]]","v":{"v":-46,"d":"-46.00 Kč"}},null,"CD",null,null,{"$f":"Zábava[[#This Row],[Předpokládané náklady]]-Zábava[[#This Row],[Skutečné náklady]]","v":{"v":0,"d":"0.00 Kč"}}]
[null,"Elektřina",{"v":44,"d":"44.00 Kč"},{"v":56,"d":"56.00 Kč"},{"$f":"Bydlení[[#This Row],[Předpokládané náklady]]-Bydlení[[#This Row],[Skutečné náklady]]","v":{"v":-12,"d":"-12.00 Kč"}},null,"Filmy",null,null,{"$f":"Zábava[[#This Row],[Předpokládané náklady]]-Zábava[[#This Row],[Skutečné náklady]]","v":{"v":0,"d":"0.00 Kč"}}]
[null,"Plyn",{"v":22,"d":"22.00 Kč"},{"v":28,"d":"28.00 Kč"},{"$f":"Bydlení[[#This Row],[Předpokládané náklady]]-Bydlení[[#This Row],[Skutečné náklady]]","v":{"v":-6,"d":"-6.00 Kč"}},null,"Koncerty",null,null,{"$f":"Zábava[[#This Row],[Předpokládané náklady]]-Zábava[[#This Row],[Skutečné náklady]]","v":{"v":0,"d":"0.00 Kč"}}]
[null,"Vodné a stočné",{"v":8,"d":"8.00 Kč"},{"v":8,"d":"8.00 Kč"},{"$f":"Bydlení[[#This Row],[Předpokládané náklady]]-Bydlení[[#This Row],[Skutečné náklady]]","v":{"v":0,"d":"0.00 Kč"}},null,"Sport",null,null,{"$f":"Zábava[[#This Row],[Předpokládané náklady]]-Zábava[[#This Row],[Skutečné náklady]]","v":{"v":0,"d":"0.00 Kč"}}]
[null,"Kabelová televize",{"v":34,"d":"34.00 Kč"},{"v":34,"d":"34.00 Kč"},{"$f":"Bydlení[[#This Row],[Předpokládané náklady]]-Bydlení[[#This Row],[Skutečné náklady]]","v":{"v":0,"d":"0.00 Kč"}},null,"Divadlo",null,null,{"$f":"Zábava[[#This Row],[Předpokládané náklady]]-Zábava[[#This Row],[Skutečné náklady]]","v":{"v":0,"d":"0.00 Kč"}}]
[null,"Poplatky za odpady",{"v":10,"d":"10.00 Kč"},{"v":10,"d":"10.00 Kč"},{"$f":"Bydlení[[#This Row],[Předpokládané náklady]]-Bydlení[[#This Row],[Skutečné náklady]]","v":{"v":0,"d":"0.00 Kč"}},null,"Jiné",null,null,{"$f":"Zábava[[#This Row],[Předpokládané náklady]]-Zábava[[#This Row],[Skutečné náklady]]","v":{"v":0,"d":"0.00 Kč"}}]
[null,"Údržba a opravy",{"v":23,"d":"23.00 Kč"},{"v":0,"d":"0.00 Kč"},{"$f":"Bydlení[[#This Row],[Předpokládané náklady]]-Bydlení[[#This Row],[Skutečné náklady]]","v":{"v":23,"d":"23.00 Kč"}},null,"Jiné",null,null,{"$f":"Zábava[[#This Row],[Předpokládané náklady]]-Zábava[[#This Row],[Skutečné náklady]]","v":{"v":0,"d":"0.00 Kč"}}]
[null,"Zásoby",{"v":0,"d":"0.00 Kč"},{"v":0,"d":"0.00 Kč"},{"$f":"Bydlení[[#This Row],[Předpokládané náklady]]-Bydlení[[#This Row],[Skutečné náklady]]","v":{"v":0,"d":"0.00 Kč"}},null,"Jiné",null,null,{"$f":"Zábava[[#This Row],[Předpokládané náklady]]-Zábava[[#This Row],[Skutečné náklady]]","v":{"v":0,"d":"0.00 Kč"}}]
[null,"Jiné",{"v":0,"d":"0.00 Kč"},{"v":0,"d":"0.00 Kč"},{"$f":"Bydlení[[#This Row],[Předpokládané náklady]]-Bydlení[[#This Row],[Skutečné náklady]]","v":{"v":0,"d":"0.00 Kč"}},null,"Mezisoučet",null,null,{"$f":"SUBTOTAL(109,Zábava[Rozdíl])","v":{"v":0,"d":"0.00 Kč"}}]
[null,"Mezisoučet",null,null,{"$f":"SUBTOTAL(109,Bydlení[Rozdíl])","v":{"v":-41,"d":"-41.00 Kč"}}]
[{"$nulls":6},"PŮJČKY","Předpokládané náklady","Skutečné náklady","Rozdíl"]
["Zadejte podrobnosti do tabulky pro doprava, která začíná v buňce napravo, a do tabulky pro půjčky, která začíná v buňce G24. Další pokyn je v buňce A35.","DOPRAVA","Předpokládané náklady","Skutečné náklady","Rozdíl",null,"Osobní",null,null,{"$f":"Půjčky[[#This Row],[Předpokládané náklady]]-Půjčky[[#This Row],[Skutečné náklady]]","v":{"v":0,"d":"0.00 Kč"}}]
[null,"Splátka automobilu",null,null,{"$f":"Doprava[[#This Row],[Předpokládané náklady]]-Doprava[[#This Row],[Skutečné náklady]]","v":{"v":0,"d":"0.00 Kč"}},null,"Studentské",null,null,{"$f":"Půjčky[[#This Row],[Předpokládané náklady]]-Půjčky[[#This Row],[Skutečné náklady]]","v":{"v":0,"d":"0.00 Kč"}}]
[null,"Autobusy/taxi",null,null,{"$f":"Doprava[[#This Row],[Předpokládané náklady]]-Doprava[[#This Row],[Skutečné náklady]]","v":{"v":0,"d":"0.00 Kč"}},null,"Kreditní karta",null,null,{"$f":"Půjčky[[#This Row],[Předpokládané náklady]]-Půjčky[[#This Row],[Skutečné náklady]]","v":{"v":0,"d":"0.00 Kč"}}]
[null,"Pojištění",null,null,{"$f":"Doprava[[#This Row],[Předpokládané náklady]]-Doprava[[#This Row],[Skutečné náklady]]","v":{"v":0,"d":"0.00 Kč"}},null,"Kreditní karta",null,null,{"$f":"Půjčky[[#This Row],[Předpokládané náklady]]-Půjčky[[#This Row],[Skutečné náklady]]","v":{"v":0,"d":"0.00 Kč"}}]
[null,"Poplatky",null,null,{"$f":"Doprava[[#This Row],[Předpokládané náklady]]-Doprava[[#This Row],[Skutečné náklady]]","v":{"v":0,"d":"0.00 Kč"}},null,"Kreditní karta",null,null,{"$f":"Půjčky[[#This Row],[Předpokládané náklady]]-Půjčky[[#This Row],[Skutečné náklady]]","v":{"v":0,"d":"0.00 Kč"}}]
[null,"Benzín",null,null,{"$f":"Doprava[[#This Row],[Předpokládané náklady]]-Doprava[[#This Row],[Skutečné náklady]]","v":{"v":0,"d":"0.00 Kč"}},null,"Jiné",null,null,{"$f":"Půjčky[[#This Row],[Předpokládané náklady]]-Půjčky[[#This Row],[Skutečné náklady]]","v":{"v":0,"d":"0.00 Kč"}}]
[null,"Údržba",null,null,{"$f":"Doprava[[#This Row],[Předpokládané náklady]]-Doprava[[#This Row],[Skutečné náklady]]","v":{"v":0,"d":"0.00 Kč"}},null,"Mezisoučet",null,null,{"$f":"SUBTOTAL(109,Půjčky[Rozdíl])","v":{"v":0,"d":"0.00 Kč"}}]
[null,"Jiné",null,null,{"$f":"Doprava[[#This Row],[Předpokládané náklady]]-Doprava[[#This Row],[Skutečné náklady]]","v":{"v":0,"d":"0.00 Kč"}}]
[null,"Mezisoučet",null,null,{"$f":"SUBTOTAL(109,Doprava[Rozdíl])","v":{"v":0,"d":"0.00 Kč"}},null,"DANĚ","Předpokládané náklady","Skutečné náklady","Rozdíl"]
[{"$nulls":6},"Daně z příjmů",null,null,{"$f":"Daně[[#This Row],[Předpokládané náklady]]-Daně[[#This Row],[Skutečné náklady]]","v":{"v":0,"d":"0.00 Kč"}}]
["Zadejte podrobnosti do tabulky pro pojištění, která začíná v buňce napravo, a do tabulky pro daně, která začíná v buňce G33. Další pokyn je v buňce A42.","POJIŠTĚNÍ","Předpokládané náklady","Skutečné náklady","Rozdíl",null,"Daně z nemovitostí",null,null,{"$f":"Daně[[#This Row],[Předpokládané náklady]]-Daně[[#This Row],[Skutečné náklady]]","v":{"v":0,"d":"0.00 Kč"}}]
[null,"Domácnost",null,null,{"$f":"Pojištění[[#This Row],[Předpokládané náklady]]-Pojištění[[#This Row],[Skutečné náklady]]","v":{"v":0,"d":"0.00 Kč"}},null,"Silniční daň",null,null,{"$f":"Daně[[#This Row],[Předpokládané náklady]]-Daně[[#This Row],[Skutečné náklady]]","v":{"v":0,"d":"0.00 Kč"}}]
[null,"Zdravotní",null,null,{"$f":"Pojištění[[#This Row],[Předpokládané náklady]]-Pojištění[[#This Row],[Skutečné náklady]]","v":{"v":0,"d":"0.00 Kč"}},null,"Jiné",null,null,{"$f":"Daně[[#This Row],[Předpokládané náklady]]-Daně[[#This Row],[Skutečné náklady]]","v":{"v":0,"d":"0.00 Kč"}}]
[null,"Životní",null,null,{"$f":"Pojištění[[#This Row],[Předpokládané náklady]]-Pojištění[[#This Row],[Skutečné náklady]]","v":{"v":0,"d":"0.00 Kč"}},null,"Mezisoučet",null,null,{"$f":"SUBTOTAL(109,Daně[Rozdíl])","v":{"v":0,"d":"0.00 Kč"}}]
[null,"Jiné",null,null,{"$f":"Pojištění[[#This Row],[Předpokládané náklady]]-Pojištění[[#This Row],[Skutečné náklady]]","v":{"v":0,"d":"0.00 Kč"}}]
[null,"Mezisoučet",null,null,{"$f":"SUBTOTAL(109,Pojištění[Rozdíl])","v":{"v":0,"d":"0.00 Kč"}},null,"SPOŘENÍ NEBO INVESTICE","Předpokládané náklady","Skutečné náklady","Rozdíl"]
[{"$nulls":6},"Penzijní pojištění",null,null,{"$f":"Spoření[[#This Row],[Předpokládané náklady]]-Spoření[[#This Row],[Skutečné náklady]]","v":{"v":0,"d":"0.00 Kč"}}]
["Zadejte podrobnosti do tabulky pro jídlo, která začíná v buňce napravo, a do tabulky pro spoření, která začíná v buňce G40. Další pokyn je v buňce A48.","JÍDLO","Předpokládané náklady","Skutečné náklady","Rozdíl",null,"Investiční účet",null,null,{"$f":"Spoření[[#This Row],[Předpokládané náklady]]-Spoření[[#This Row],[Skutečné náklady]]","v":{"v":0,"d":"0.00 Kč"}}]
[null,"Nákupy potravin",null,null,{"$f":"Jídlo[[#This Row],[Předpokládané náklady]]-Jídlo[[#This Row],[Skutečné náklady]]","v":{"v":0,"d":"0.00 Kč"}},null,"Jiné",null,null,{"$f":"Spoření[[#This Row],[Předpokládané náklady]]-Spoření[[#This Row],[Skutečné náklady]]","v":{"v":0,"d":"0.00 Kč"}}]
[null,"Večeře v restauraci",null,null,{"$f":"Jídlo[[#This Row],[Předpokládané náklady]]-Jídlo[[#This Row],[Skutečné náklady]]","v":{"v":0,"d":"0.00 Kč"}},null,"Mezisoučet",null,null,{"$f":"SUBTOTAL(109,Spoření[Rozdíl])","v":{"v":0,"d":"0.00 Kč"}}]
[null,"Jiné",null,null,{"$f":"Jídlo[[#This Row],[Předpokládané náklady]]-Jídlo[[#This Row],[Skutečné náklady]]","v":{"v":0,"d":"0.00 Kč"}}]
[null,"Mezisoučet",null,null,{"$f":"SUBTOTAL(109,Jídlo[Rozdíl])","v":{"v":0,"d":"0.00 Kč"}},null,"DARY A PŘÍSPĚVKY","Předpokládané náklady","Skutečné náklady","Rozdíl"]
[{"$nulls":6},"Charita 1",null,null,{"$f":"Dary[[#This Row],[Předpokládané náklady]]-Dary[[#This Row],[Skutečné náklady]]","v":{"v":0,"d":"0.00 Kč"}}]
["Zadejte podrobnosti do tabulky pro domácí zvířata, která začíná v buňce napravo, a do tabulky pro dary, která začíná v buňce G46. Další pokyn je v buňce A56.","DOMÁCÍ ZVÍŘATA","Předpokládané náklady","Skutečné náklady","Rozdíl",null,"Charita 2",null,null,{"$f":"Dary[[#This Row],[Předpokládané náklady]]-Dary[[#This Row],[Skutečné náklady]]","v":{"v":0,"d":"0.00 Kč"}}]
[null,"Jídlo",null,null,{"$f":"DomácíZvířata[[#This Row],[Předpokládané náklady]]-DomácíZvířata[[#This Row],[Skutečné náklady]]","v":{"v":0,"d":"0.00 Kč"}},null,"Charita 3",null,null,{"$f":"Dary[[#This Row],[Předpokládané náklady]]-Dary[[#This Row],[Skutečné náklady]]","v":{"v":0,"d":"0.00 Kč"}}]
[null,"Zdravotní péče",null,null,{"$f":"DomácíZvířata[[#This Row],[Předpokládané náklady]]-DomácíZvířata[[#This Row],[Skutečné náklady]]","v":{"v":0,"d":"0.00 Kč"}},null,"Mezisoučet",null,null,{"$f":"SUBTOTAL(109,Dary[Rozdíl])","v":{"v":0,"d":"0.00 Kč"}}]
[null,"Péče o vzhled",null,null,{"$f":"DomácíZvířata[[#This Row],[Předpokládané náklady]]-DomácíZvířata[[#This Row],[Skutečné náklady]]","v":{"v":0,"d":"0.00 Kč"}}]
[null,"Hračky",null,null,{"$f":"DomácíZvířata[[#This Row],[Předpokládané náklady]]-DomácíZvířata[[#This Row],[Skutečné náklady]]","v":{"v":0,"d":"0.00 Kč"}},null,"PRÁVNÍ","Předpokládané náklady","Skutečné náklady","Rozdíl"]
[null,"Jiné",null,null,{"$f":"DomácíZvířata[[#This Row],[Předpokládané náklady]]-DomácíZvířata[[#This Row],[Skutečné náklady]]","v":{"v":0,"d":"0.00 Kč"}},null,"Advokát",null,null,{"$f":"Právní[[#This Row],[Předpokládané náklady]]-Právní[[#This Row],[Skutečné náklady]]","v":{"v":0,"d":"0.00 Kč"}}]
[null,"Mezisoučet",null,null,{"$f":"SUBTOTAL(109,DomácíZvířata[Rozdíl])","v":{"v":0,"d":"0.00 Kč"}},null,"Výživné",null,null,{"$f":"Právní[[#This Row],[Předpokládané náklady]]-Právní[[#This Row],[Skutečné náklady]]","v":{"v":0,"d":"0.00 Kč"}}]
[{"$nulls":6},"Platby za držbu nebo odhadce",null,null,{"$f":"Právní[[#This Row],[Předpokládané náklady]]-Právní[[#This Row],[Skutečné náklady]]","v":{"v":0,"d":"0.00 Kč"}}]
["Zadejte podrobnosti do tabulky pro osobní péče, která začíná v buňce napravo, a do tabulky pro právní náklady, která začíná v buňce G52. Další pokyn je v buňce A59.","OSOBNÍ PÉČE","Předpokládané náklady","Skutečné náklady","Rozdíl",null,"Jiné",null,null,{"$f":"Právní[[#This Row],[Předpokládané náklady]]-Právní[[#This Row],[Skutečné náklady]]","v":{"v":0,"d":"0.00 Kč"}}]
[null,"Zdravotní péče",null,null,{"$f":"OsobníPéče[[#This Row],[Předpokládané náklady]]-OsobníPéče[[#This Row],[Skutečné náklady]]","v":{"v":0,"d":"0.00 Kč"}},null,"Mezisoučet",null,null,{"$f":"SUBTOTAL(109,Právní[Rozdíl])","v":{"v":0,"d":"0.00 Kč"}}]
[null,"Vlasy a nehty",null,null,{"$f":"OsobníPéče[[#This Row],[Předpokládané náklady]]-OsobníPéče[[#This Row],[Skutečné náklady]]","v":{"v":0,"d":"0.00 Kč"}}]
["V buňce J59 se automaticky počítají celkové předpokládané náklady, v buňce J61 celkové skutečné náklady a v buňce J63 celkový rozdíl.","Oblečení",null,null,{"$f":"OsobníPéče[[#This Row],[Předpokládané náklady]]-OsobníPéče[[#This Row],[Skutečné náklady]]","v":{"v":0,"d":"0.00 Kč"}},null,"PŘEDPOKLÁDANÉ NÁKLADY CELKEM",null,null,{"$f":"SUBTOTAL(109,Bydlení[Předpokládané náklady],Doprava[Předpokládané náklady],Pojištění[Předpokládané náklady],Jídlo[Předpokládané náklady],DomácíZvířata[Předpokládané náklady],OsobníPéče[Předpokládané náklady],Zábava[Předpokládané náklady],Půjčky[Předpokládané náklady],Daně[Předpokládané náklady],Spoření[Předpokládané náklady],Dary[Předpokládané náklady],Právní[Předpokládané náklady])","v":{"v":1195,"d":"1,195.00 Kč"}}]
[null,"Čistírna",null,null,{"$f":"OsobníPéče[[#This Row],[Předpokládané náklady]]-OsobníPéče[[#This Row],[Skutečné náklady]]","v":{"v":0,"d":"0.00 Kč"}}]
[null,"Fitness",null,null,{"$f":"OsobníPéče[[#This Row],[Předpokládané náklady]]-OsobníPéče[[#This Row],[Skutečné náklady]]","v":{"v":0,"d":"0.00 Kč"}},null,"SKUTEČNÉ NÁKLADY CELKEM",null,null,{"$f":"SUBTOTAL(109,Bydlení[Skutečné náklady],Doprava[Skutečné náklady],Pojištění[Skutečné náklady],Jídlo[Skutečné náklady],DomácíZvířata[Skutečné náklady],OsobníPéče[Skutečné náklady],Zábava[Skutečné náklady],Půjčky[Skutečné náklady],Daně[Skutečné náklady],Spoření[Skutečné náklady],Dary[Skutečné náklady],Právní[Skutečné náklady])","v":{"v":1236,"d":"1,236.00 Kč"}}]
[null,"Členské příspěvky a poplatky",null,null,{"$f":"OsobníPéče[[#This Row],[Předpokládané náklady]]-OsobníPéče[[#This Row],[Skutečné náklady]]","v":{"v":0,"d":"0.00 Kč"}}]
[null,"Jiné",null,null,{"$f":"OsobníPéče[[#This Row],[Předpokládané náklady]]-OsobníPéče[[#This Row],[Skutečné náklady]]","v":{"v":0,"d":"0.00 Kč"}},null,"CELKOVÝ ROZDÍL",null,null,{"$f":"J59-J61","v":{"v":-41,"d":"-41.00 Kč"}}]
[null,"Mezisoučet",null,null,{"$f":"SUBTOTAL(109,OsobníPéče[Rozdíl])","v":{"v":0,"d":"0.00 Kč"}}]